bitfinex/quotes_BTCUSD_20220201
["timestamp","ask_amount","ask_price","bid_price","bid_amount"]
[1643722134230,0.159174,38688.0,38682.0,0.17530762]
[1643722134429,0.29673856,38687.0,38682.0,0.02028509]
[1643722134627,0.009174,38686.0,38682.0,0.02028509]
[1643722134825,0.109174,38686.0,38682.0,0.02028509]
[1643722135126,0.159174,38686.0,38682.0,0.02028509]
[1643722135927,0.059174,38686.0,38682.0,0.02028509]
[1643722136126,0.04193308,38685.0,38682.0,0.02028509]
[1643722136327,0.009174,38684.0,38682.0,0.02028509]
[1643722136524,0.03449016,38685.0,38677.0,0.36712977]
[1643722136730,0.04237329,38687.0,38677.0,0.36712977]
[1643722136926,0.009174,38686.0,38677.0,0.36712977]
[1643722137126,0.04540442,38685.0,38677.0,0.36712977]
[1643722137325,0.03389435,38684.0,38677.0,0.45750057]
[1643722137526,0.03389435,38684.0,38677.0,0.22646508]
[1643722137727,0.25665966,38685.0,38677.0,0.00182854]
[1643722137979,0.04383287,38683.0,38677.0,0.00182854]
[1643722138177,0.009174,38682.0,38677.0,0.02349643]
[1643722138378,0.04234332,38682.0,38677.0,0.02349643]
[1643722138782,0.04234332,38682.0,38678.0,0.12208515]
[1643722138979,0.009174,38682.0,38679.0,0.0753283]
[1643722139181,0.05,38686.0,38679.0,0.0753283]
[1643722139382,0.009174,38685.0,38679.0,0.0753283]
[1643722139579,0.0349498,38688.0,38679.0,0.0753283]
[1643722139779,0.27324689,38687.0,38679.0,0.0753283]
[1643722139980,0.31548554,38687.0,38678.0,0.12208515]
[1643722140180,0.19626481,38687.0,38679.0,0.01976498]
[1643722140379,0.109174,38687.0,38679.0,0.01976498]
[1643722140583,0.15863592,38687.0,38678.0,0.12208515]
[1643722140784,0.159174,38687.0,38678.0,0.12208515]
[1643722140983,0.04217518,38684.0,38680.0,0.08789451]
[1643722141185,0.159174,38687.0,38680.0,0.08789451]
[1643722141186,0.009174,38683.0,38680.0,0.08789451]
[1643722141384,0.05,38686.0,38680.0,0.08789451]
[1643722141385,0.009174,38685.0,38680.0,0.08789451]
[1643722141639,0.009174,38685.0,38684.0,0.12644836]
[1643722141830,0.009174,38686.0,38684.0,0.12644836]
[1643722142038,0.04272509,38685.0,38677.0,0.00182857]
[1643722142231,0.009174,38686.0,38679.0,0.27860557]
[1643722142232,0.04479709,38683.0,38679.0,0.27860557]
[1643722142432,0.009174,38682.0,38679.0,0.27860557]
[1643722142731,0.1,38686.0,38679.0,0.27860557]
[1643722142732,0.009174,38684.0,38679.0,0.27860557]
[1643722142930,0.009174,38685.0,38683.0,0.09996099]
[1643722143233,0.1428156,38692.0,38683.0,0.09996099]
[1643722143234,0.27017082,38695.0,38684.0,1.3]
[1643722143437,1.2750988,38693.0,38685.0,0.25017432]
[1643722143833,1.2750988,38693.0,38686.0,0.0473]
[1643722147405,8.88e-06,38703.0,38700.0,0.28752616]
[1643722147908,0.001,38711.0,38700.0,0.28752616]
[1643722147909,0.01,38719.0,38701.0,1.714605]
[1643722148109,0.01,38719.0,38705.0,0.064592]
[1643722148406,0.01,38719.0,38706.0,0.6476605]
[1643722148605,0.00140417,38712.0,38706.0,0.6976605]
[1643722148807,0.00140417,38712.0,38708.0,0.39333946]
[1643722149006,0.00140417,38712.0,38709.0,0.6476605]
[1643722149448,0.00140417,38712.0,38709.0,0.71224109]
[1643722149647,0.01,38719.0,38716.0,0.10497471]
[1643722149847,0.01,38719.0,38717.0,0.14974702]
[1643722150049,0.01,38719.0,38716.0,0.15497471]
[1643722150050,0.01,38719.0,38716.0,0.05]
[1643722150249,0.01,38719.0,38709.0,0.2503495]
[1643722150548,0.01,38719.0,38707.0,0.29350194]
[1643722150549,0.01,38719.0,38707.0,0.26564036]
[1643722150750,0.05441743,38719.0,38707.0,0.0473]
[1643722150949,0.00140417,38716.0,38707.0,0.0473]
[1643722151151,0.00140417,38716.0,38701.0,0.533]
[1643722151152,0.00140417,38716.0,38704.0,0.16690913]
[1643722151351,0.0755453,38709.0,38700.0,0.528]
[1643722151551,0.00140417,38716.0,38701.0,0.25352607]
[1643722151752,0.04326687,38715.0,38702.0,0.23169306]
[1643722151949,0.03376635,38715.0,38702.0,0.23169306]
[1643722152149,0.00140417,38710.0,38702.0,0.23169306]
[1643722152556,0.00140417,38710.0,38707.0,0.13844402]
[1643722153196,0.1,38716.0,38707.0,0.13844402]
[1643722153396,0.00140417,38710.0,38707.0,0.13844402]
[1643722153799,0.00140417,38710.0,38708.0,0.21518719]
[1643722153998,0.00140417,38710.0,38709.0,1.30370467]
[1643722154396,0.01,38719.0,38709.0,0.10370467]
[1643722154597,0.00140417,38711.0,38710.0,0.65]
[1643722155100,0.00140417,38711.0,38707.0,0.13844402]
[1643722155297,0.00140417,38711.0,38702.0,0.29336741]
[1643722155498,0.25759462,38717.0,38692.0,0.723021]
[1643722155499,0.34708124,38717.0,38692.0,0.723021]
[1643722155698,0.00140417,38708.0,38692.0,0.723021]
[1643722155898,0.00140417,38708.0,38694.0,0.21870882]
[1643722156197,0.00140417,38708.0,38703.0,0.09317912]
[1643722156398,0.00140417,38708.0,38704.0,0.13654852]
[1643722156840,0.2984803,38715.0,38704.0,0.13654852]
[1643722157041,0.00140417,38708.0,38704.0,0.13654852]
[1643722157940,0.35766203,38716.0,38704.0,0.13654852]
[1643722157941,0.07952401,38712.0,38704.0,0.13654852]
[1643722158141,0.00140417,38708.0,38704.0,0.13654852]
[1643722159242,0.36497271,38716.0,38704.0,0.13654852]
[1643722159451,0.00140417,38708.0,38704.0,0.13654852]
[1643722160498,0.07742174,38715.0,38704.0,0.13654852]
[1643722160695,0.00140417,38708.0,38704.0,0.13654852]
[1643722161298,0.00109318,38708.0,38704.0,0.13654852]
[1643722161496,0.40588914,38714.0,38704.0,0.13654852]
[1643722161701,0.04684422,38712.0,38704.0,0.13654852]
[1643722161896,0.40811468,38714.0,38704.0,0.13654852]
[1643722162098,0.0400948,38712.0,38700.0,0.528]
[1643722162299,0.35900568,38714.0,38694.0,0.1541]
[1643722162300,0.09799054,38710.0,38694.0,0.1541]
[1643722162497,0.09799054,38710.0,38695.0,0.07448882]
[1643722162498,0.35174085,38709.0,38695.0,0.07448882]
[1643722162900,0.14206817,38708.0,38701.0,0.02040291]
[1643722163097,0.0473,38707.0,38701.0,0.02040291]
[1643722163496,0.07908297,38705.0,38701.0,0.02040291]
[1643722163699,0.07908297,38705.0,38696.0,0.16869009]
[1643722163896,0.07908297,38705.0,38695.0,0.07448882]
[1643722164342,0.07908297,38705.0,38697.0,0.01819497]
[1643722164742,0.2,38706.0,38697.0,0.01819497]
[1643722164945,0.04891652,38709.0,38697.0,0.01819497]
[1643722164946,0.00140316,38709.0,38697.0,0.01819497]
[1643722165244,0.1,38712.0,38697.0,0.064607]
[1643722165448,0.0014032,38709.0,38697.0,0.12921079]
[1643722165644,0.0014032,38709.0,38703.0,0.08453091]
[1643722166443,0.3003495,38714.0,38703.0,0.08453091]
[1643722166644,0.00140336,38709.0,38703.0,0.08453091]
[1643722166943,0.00140336,38709.0,38700.0,0.12513647]
[1643722167542,0.31946104,38711.0,38700.0,0.12513647]
[1643722167543,0.05,38711.0,38700.0,0.12513647]
[1643722167743,0.00140331,38709.0,38700.0,0.12513647]
[1643722168192,0.00140331,38709.0,38701.0,0.08383879]
[1643722168793,0.35771009,38710.0,38701.0,0.08383879]
[1643722168993,0.00140332,38709.0,38701.0,0.08383879]
[1643722169994,0.1,38710.0,38706.0,0.15559327]
[1643722170195,0.00140332,38709.0,38706.0,0.15559327]
[1643722170598,0.00140332,38709.0,38701.0,0.08383879]
[1643722170797,0.31155142,38709.0,38701.0,0.08383879]
[1643722170996,0.0498203,38709.0,38701.0,0.10546806]
[1643722171295,0.15,38708.0,38701.0,0.08383879]
[1643722171497,0.15,38708.0,38695.0,0.29983199]
[1643722171748,0.15,38708.0,38697.0,0.12390457]
[1643722171749,0.03468544,38707.0,38697.0,0.12390457]
[1643722172150,0.2631305,38706.0,38691.0,0.00915219]
[1643722172350,0.29969312,38706.0,38688.0,0.728]
[1643722172547,0.29969312,38706.0,38691.0,0.00915192]
[1643722172548,0.10170167,38705.0,38691.0,0.00915192]
[1643722172750,0.03806084,38703.0,38691.0,0.00915192]
[1643722172947,0.08536084,38703.0,38695.0,0.0214152]
[1643722173150,0.18536084,38703.0,38695.0,0.0214152]
[1643722173346,0.26012167,38702.0,38695.0,0.0214152]
[1643722173552,1.41573949,38701.0,38695.0,0.0214152]
[1643722173751,0.3503495,38700.0,38695.0,0.0214152]
[1643722173949,0.08093337,38699.0,38695.0,0.0214152]
[1643722174246,0.82523,38698.0,38695.0,0.0214152]
[1643722174448,0.09285516,38697.0,38695.0,0.0214152]
[1643722174647,0.09285516,38697.0,38691.0,0.00915164]
[1643722174648,0.19285516,38697.0,38691.0,0.00915164]
[1643722174850,0.09992418,38692.0,38685.0,0.09410355]
[1643722175050,0.0473,38693.0,38691.0,0.00183028]
[1643722175249,0.09387908,38693.0,38691.0,0.00183028]
[1643722175493,0.04623041,38692.0,38691.0,0.00183028]
[1643722175893,0.0473,38693.0,38687.0,0.13550627]
[1643722176090,0.09435793,38693.0,38690.0,0.00183025]
[1643722176491,0.14435793,38693.0,38690.0,0.00183025]
[1643722176891,0.13501475,38693.0,38690.0,0.00183025]
[1643722177195,0.0417942,38692.0,38686.0,0.01945761]
[1643722177394,0.09283486,38691.0,38690.0,0.00183025]
[1643722177591,0.08492725,38691.0,38690.0,0.00183025]
[1643722177791,0.0973,38691.0,38690.0,0.00183025]
[1643722178092,0.0473,38691.0,38690.0,0.00183025]
[1643722178295,0.0473,38691.0,38685.0,0.26102255]
[1643722178493,0.0473,38691.0,38689.0,0.00183028]
[1643722179152,0.04698906,38691.0,38689.0,0.00183028]
[1643722179542,0.04698906,38691.0,38685.0,0.26102255]
[1643722179841,0.04698906,38691.0,38688.0,0.0018303]
[1643722180742,0.04698906,38691.0,38681.0,0.0031]
[1643722180945,0.04698906,38691.0,38688.0,0.00183031]
[1643722181344,0.30867002,38691.0,38688.0,0.00183031]
[1643722181741,0.1,38690.0,38688.0,0.00183031]
[1643722181940,0.25670654,38689.0,38682.0,0.41305648]
[1643722182140,0.2,38690.0,38688.0,0.00183031]
[1643722182340,0.15,38690.0,38688.0,0.00183031]
[1643722182541,0.09202291,38687.0,38683.0,0.01738383]
[1643722183391,0.09202291,38687.0,38682.0,0.15875952]
[1643722183392,0.09202291,38687.0,38681.0,0.0031]
[1643722184196,0.25828558,38686.0,38681.0,0.0031]
[1643722184497,0.0473,38685.0,38681.0,0.0031]
[1643722184893,0.1473,38685.0,38681.0,0.0031]
[1643722185693,0.1473,38685.0,38681.0,0.00422645]
[1643722185993,0.0473,38685.0,38681.0,0.00422645]
[1643722186840,0.26108775,38684.0,38681.0,0.0031]
[1643722187040,0.26108775,38684.0,38681.0,0.00492821]
[1643722187041,0.0473,38683.0,38681.0,0.00492821]
[1643722187243,0.1473,38683.0,38681.0,0.00492821]
[1643722187644,0.2473,38683.0,38681.0,0.00492821]
[1643722188043,0.2,38683.0,38681.0,0.0031]
[1643722188444,0.045016,38682.0,38681.0,0.0017]
[1643722188644,0.0517,38682.0,38681.0,0.0017]
[1643722190708,0.1017,38682.0,38681.0,0.0017]
[1643722190907,0.1517,38682.0,38681.0,0.0017]
[1643722192008,0.0517,38682.0,38681.0,0.0017]
[1643722192209,0.1,38684.0,38681.0,0.17056967]
[1643722192210,0.05,38684.0,38681.0,0.17056967]
[1643722192409,0.064653,38692.0,38681.0,0.17056967]
[1643722192612,1.27523,38691.0,38681.0,0.17056967]
[1643722192810,0.77523,38691.0,38681.0,0.17016967]
[1643722193011,0.77523,38691.0,38685.0,0.00182811]
[1643722193210,0.10249809,38689.0,38685.0,0.00182811]
[1643722194014,0.77523,38691.0,38685.0,0.27452667]
[1643722194249,0.77523,38691.0,38685.0,0.27635477]
[1643722195048,0.87523,38691.0,38685.0,0.3643656]
[1643722195248,0.1,38690.0,38685.0,0.08801083]
[1643722195449,0.1,38690.0,38686.0,0.00182807]
[1643722196449,0.1,38690.0,38685.0,0.25725891]
[1643722196655,0.1,38690.0,38686.0,0.00182807]
[1643722197550,0.1,38690.0,38685.0,0.35784619]
[1643722197750,0.1,38690.0,38686.0,0.00182807]
[1643722197994,0.1,38690.0,38687.0,0.15260145]
[1643722198794,0.1,38690.0,38685.0,0.25725891]
[1643722198996,0.09968892,38690.0,38686.0,0.00182808]
[1643722199997,0.17670346,38690.0,38684.0,0.01953319]
[1643722200196,0.17670346,38690.0,38686.0,0.00182807]
[1643722200396,0.09968892,38690.0,38686.0,0.00182807]
[1643722200598,0.13196583,38690.0,38686.0,0.00182807]
[1643722200795,0.09968892,38690.0,38686.0,0.00182807]
[1643722201198,0.09968892,38690.0,38684.0,0.22909252]
[1643722201399,0.09968892,38690.0,38689.0,0.13242263]
[1643722202545,0.09968892,38690.0,38684.0,0.22909252]
[1643722202546,0.09968892,38690.0,38686.0,0.0018281]
[1643722203647,0.09968892,38690.0,38686.0,0.1373342]
[1643722203847,0.09968892,38690.0,38686.0,0.13916227]
[1643722204747,0.09968892,38690.0,38686.0,0.1373342]
[1643722205048,0.09968892,38690.0,38686.0,0.22853371]
[1643722205503,0.77523,38691.0,38687.0,0.1790167]
[1643722205800,0.77523,38691.0,38688.0,0.350011]
[1643722206000,0.77523,38691.0,38689.0,0.3020495]
[1643722209554,0.0150974,38707.0,38706.0,0.17193185]
[1643722209747,0.0150974,38707.0,38706.0,0.40003338]
[1643722209948,0.0150974,38707.0,38706.0,0.17193185]
[1643722211750,0.0150974,38707.0,38702.0,0.01901453]
[1643722212353,0.02253796,38707.0,38702.0,0.01901453]
[1643722212554,0.02253796,38707.0,38702.0,0.03836538]
[1643722212555,0.10246941,38706.0,38702.0,0.03836538]
[1643722212756,0.73761932,38703.0,38702.0,0.03836538]
[1643722212993,0.73761932,38703.0,38692.0,0.00112885]
[1643722212994,0.75,38701.0,38692.0,0.00112885]
[1643722213200,0.75,38701.0,38683.0,0.01906354]
[1643722213201,0.28099116,38700.0,38683.0,0.01906354]
[1643722213394,0.05,38699.0,38692.0,0.00183168]
[1643722213593,0.06465,38697.0,38692.0,0.00183168]
[1643722213793,0.39442361,38696.0,38692.0,0.00183168]
[1643722214195,0.0150974,38694.0,38692.0,0.00183168]
[1643722214494,0.0150974,38694.0,38683.0,0.01906354]
[1643722214495,0.0517,38693.0,38683.0,0.01906354]
[1643722214696,0.0517,38693.0,38692.0,0.00112737]
[1643722214697,0.0667974,38693.0,38692.0,0.00112737]
[1643722214894,0.1667974,38693.0,38692.0,0.00112737]
[1643722215094,0.2167974,38693.0,38692.0,0.00112737]
[1643722215295,0.2667974,38693.0,38692.0,0.00112737]
[1643722215696,0.08215608,38687.0,38683.0,0.01906354]
[1643722215995,0.08215608,38687.0,38685.0,0.00451028]
[1643722216411,0.1,38692.0,38685.0,0.00451028]
[1643722216649,0.2017,38692.0,38685.0,0.00451028]
[1643722216846,0.2017,38692.0,38683.0,0.01906354]
[1643722217045,0.2017,38692.0,38687.0,0.00183107]
[1643722217444,0.10315221,38691.0,38687.0,0.00183107]
[1643722217844,0.15315221,38691.0,38687.0,0.00183107]
[1643722218045,0.15315221,38691.0,38683.0,0.23360379]
[1643722218246,0.15315221,38691.0,38687.0,0.00183105]
[1643722218445,0.10315221,38691.0,38687.0,0.00183105]
[1643722219246,0.2017,38692.0,38683.0,0.21454025]
[1643722219446,0.2017,38692.0,38687.0,0.00183105]
[1643722219648,0.1017,38692.0,38687.0,0.00183105]
[1643722219851,0.2017,38692.0,38687.0,0.00183105]
[1643722220048,0.0150974,38690.0,38687.0,0.00183105]
[1643722220498,0.0150974,38690.0,38686.0,0.10449175]
[1643722220698,0.0150974,38690.0,38687.0,0.00183107]
[1643722221094,0.0150974,38690.0,38687.0,0.00165362]
[1643722221294,0.0150974,38690.0,38688.0,0.14299407]
[1643722221597,0.0150974,38690.0,38683.0,0.21454025]
[1643722222594,0.0150974,38690.0,38685.0,0.16693281]
[1643722222995,0.0150974,38690.0,38685.0,0.16806016]
[1643722223996,0.0150974,38690.0,38685.0,0.16693281]
[1643722224246,0.0150974,38690.0,38686.0,0.00112733]
[1643722225049,0.38367831,38691.0,38686.0,0.00112733]
[1643722225244,0.0150974,38688.0,38683.0,0.1571173]
[1643722225444,0.0150974,38688.0,38686.0,0.00183086]
[1643722225848,0.0517,38687.0,38686.0,0.00183086]
[1643722226348,0.0517,38687.0,38683.0,0.1571173]
[1643722226646,0.0517,38687.0,38685.0,0.0018309]
[1643722227651,0.0517,38687.0,38683.0,0.1571173]
[1643722227896,0.0517,38687.0,38684.0,0.00183092]
[1643722228898,0.0517,38687.0,38682.0,0.28498672]
[1643722229097,0.0517,38687.0,38684.0,0.00183093]
[1643722229700,0.0150974,38686.0,38684.0,0.00183093]
[1643722229903,0.0667974,38686.0,38684.0,0.00183093]
[1643722230100,0.0667974,38686.0,38681.0,0.0013]
[1643722230303,0.0667974,38686.0,38683.0,0.00183095]
[1643722230702,0.0150974,38684.0,38683.0,0.00183095]
[1643722231301,0.0667974,38684.0,38681.0,0.0013]
[1643722231501,0.0667974,38684.0,38682.0,0.00183099]
[1643722232353,0.0667974,38684.0,38681.0,0.0013]
[1643722232753,0.0667974,38684.0,38681.0,0.00213101]
[1643722233653,0.0667974,38684.0,38681.0,0.0003]
[1643722233855,0.0667974,38684.0,38681.0,0.00213102]
[1643722234855,0.0667974,38684.0,38681.0,0.0003]
[1643722235054,0.0150974,38682.0,38681.0,0.00213102]
[1643722235499,0.0150974,38682.0,38680.0,0.16020825]
[1643722235895,0.0150974,38681.0,38680.0,0.16020825]
[1643722236498,0.0150974,38681.0,38680.0,0.38661252]
[1643722237497,0.0150974,38681.0,38679.0,0.0011]
[1643722240247,0.0150974,38680.0,38679.0,0.0011]
[1643722240447,0.0150974,38680.0,38679.0,0.21616828]
[1643722241246,0.0301948,38680.0,38679.0,0.29820342]
[1643722241447,0.0301948,38680.0,38679.0,0.29328945]
[1643722242548,0.0301948,38680.0,38679.0,0.58772622]
[1643722244600,0.0301948,38680.0,38679.0,0.37257191]
[1643722244798,0.0301948,38680.0,38679.0,0.6051487]
[1643722246099,0.0301948,38680.0,38679.0,0.31071193]
[1643722246299,0.0301948,38680.0,38678.0,0.16194931]
[1643722246746,0.08156838,38688.0,38679.0,0.21592809]
[1643722246946,0.0150974,38683.0,38679.0,0.22070612]
[1643722247148,0.0150974,38683.0,38679.0,0.43862933]
[1643722247345,0.0150974,38683.0,38679.0,0.54242032]
[1643722247547,0.0150974,38683.0,38679.0,0.10254746]
[1643722247749,0.0150974,38683.0,38678.0,0.0011]
[1643722247947,0.0517,38682.0,38678.0,0.0011]
[1643722248148,0.05138884,38682.0,38678.0,0.0011]
[1643722248347,0.0150974,38683.0,38679.0,0.00182772]
[1643722248551,0.21589091,38682.0,38679.0,0.00182772]
[1643722248751,0.30735662,38681.0,38679.0,0.00182772]
[1643722248949,0.69765122,38680.0,38679.0,0.00182772]
[1643722249148,0.24765122,38680.0,38679.0,0.00182772]
[1643722249447,0.24765122,38680.0,38678.0,0.00292775]
[1643722249448,0.36232522,38680.0,38678.0,0.00292775]
[1643722249647,0.05,38679.0,38678.0,0.00292775]
[1643722249849,1.532274,38679.0,38678.0,0.00292775]
[1643722250246,1.632274,38679.0,38678.0,0.00292775]
[1643722250498,1.632274,38679.0,38678.0,0.0011]
[1643722250701,1.63971456,38679.0,38678.0,0.0011]
[1643722251700,2.41459456,38679.0,38678.0,0.0011]
[1643722251899,1.05969196,38679.0,38678.0,0.0011]
[1643722252301,1.07478936,38679.0,38678.0,0.0011]
[1643722253401,1.0673488,38679.0,38678.0,0.0011]
[1643722254002,1.0173488,38679.0,38678.0,0.0011]
[1643722254254,0.8526748,38679.0,38678.0,0.0011]
[1643722254452,0.8050748,38679.0,38678.0,0.0011]
[1643722254852,0.8050748,38679.0,38676.0,0.14194534]
[1643722255054,0.8050748,38679.0,38675.0,0.0011]
[1643722255256,0.9050748,38679.0,38675.0,0.0011]
[1643722255455,0.96974335,38679.0,38675.0,0.0011]
[1643722255655,0.0476,38678.0,38675.0,0.0011]
[1643722256053,0.1476,38678.0,38675.0,0.0011]
[1643722256259,0.29763577,38678.0,38675.0,0.0011]
[1643722256655,0.1976,38678.0,38675.0,0.0011]
[1643722257056,0.391618,38678.0,38675.0,0.0011]
[1643722257255,0.0150974,38676.0,38675.0,0.0011]
[1643722257457,0.0626974,38676.0,38675.0,0.0011]
[1643722257657,0.0777948,38676.0,38675.0,0.0011]
[1643722259706,1.45523536,38676.0,38675.0,0.0011]
[1643722260105,2.50478159,38676.0,38675.0,0.0011]
[1643722260306,2.50478159,38676.0,38675.0,0.0001]
[1643722261308,0.1519082,38674.0,38671.0,0.0011]
[1643722261513,0.1519082,38674.0,38670.0,1.0]
[1643722261514,2.12,38671.0,38670.0,1.0]
[1643722261759,2.12,38671.0,38670.0,0.98430386]
[1643722261760,2.39248,38671.0,38670.0,0.98430386]
[1643722261956,2.39992056,38671.0,38670.0,0.98430386]
[1643722262355,2.49645342,38671.0,38670.0,0.96655357]
[1643722262556,2.51155082,38671.0,38670.0,0.8917756]
[1643722262757,2.51155082,38671.0,38670.0,0.87607751]
[1643722262956,2.52664822,38671.0,38670.0,0.8758574]
[1643722263154,2.52664822,38671.0,38670.0,0.86238181]
[1643722263356,2.52664822,38671.0,38670.0,0.53066333]
[1643722263559,0.064703,38668.0,38664.0,0.002]
[1643722263761,2.19248,38667.0,38664.0,0.002]
[1643722263962,2.24992056,38667.0,38664.0,0.002]
[1643722264160,1.37,38665.0,38664.0,0.002]
[1643722264458,2.86951003,38665.0,38664.0,0.002]
[1643722264657,2.87695059,38665.0,38664.0,0.002]
[1643722264856,2.58946484,38665.0,38664.0,0.002]
[1643722265057,0.064703,38664.0,38660.0,0.0053]
[1643722265260,2.19248,38663.0,38660.0,0.0053]
[1643722265505,1.37,38661.0,38660.0,0.0042]
[1643722265705,0.7,38659.0,38654.0,0.0022]
[1643722265905,0.15,38660.0,38654.0,0.0022]
[1643722266107,0.13302106,38655.0,38654.0,0.0022]
[1643722266305,1.00550106,38655.0,38654.0,0.0022]
[1643722266710,2.47550106,38655.0,38654.0,0.0022]
[1643722267313,2.47550106,38655.0,38650.0,0.0031]
[1643722267314,0.5,38653.0,38650.0,0.0031]
[1643722267511,0.21097336,38652.0,38650.0,0.0031]
[1643722267809,0.21097336,38652.0,38648.0,0.00118042]
[1643722267810,0.3,38650.0,38648.0,0.00118042]
[1643722268010,0.87248,38649.0,38647.0,0.00457273]
[1643722268206,0.0150974,38648.0,38647.0,0.00457273]
[1643722268407,0.16252771,38648.0,38642.0,0.0031]
[1643722268711,0.34197771,38648.0,38642.0,0.0031]
[1643722268909,0.47143238,38648.0,38642.0,0.0031]
[1643722269166,0.05,38646.0,38642.0,0.0031]
[1643722269455,0.0476,38645.0,38642.0,0.0031]
[1643722269651,0.0976,38645.0,38642.0,0.0031]
[1643722269855,0.0476,38645.0,38642.0,0.0031]
[1643722270051,0.1476,38645.0,38642.0,0.0031]
[1643722270252,0.0476,38645.0,38642.0,0.0041]
[1643722270552,0.0476,38645.0,38642.0,0.0031]
[1643722270753,0.0476,38645.0,38643.0,0.14427847]
[1643722270953,0.0476,38645.0,38643.0,0.14527847]
[1643722271152,0.0476,38645.0,38643.0,0.001]
[1643722271353,0.0476,38645.0,38642.0,0.00421127]
[1643722271752,0.0476,38645.0,38642.0,0.00521127]
[1643722271954,0.0476,38645.0,38642.0,0.25401127]
[1643722272151,0.0476,38645.0,38643.0,0.15323168]
[1643722272552,0.16492771,38648.0,38643.0,0.001]
[1643722272754,0.16492771,38648.0,38642.0,0.00491972]
[1643722273010,0.05,38646.0,38642.0,0.00491972]
[1643722273203,0.0626974,38645.0,38642.0,0.00491972]
[1643722273404,0.0626974,38645.0,38642.0,0.0049197]
[1643722273606,0.01492771,38644.0,38642.0,0.0049197]
[1643722273805,0.16252771,38644.0,38642.0,0.0049197]
[1643722274005,0.34200171,38644.0,38642.0,0.0049197]
[1643722274207,0.05,38643.0,38642.0,0.0049197]
[1643722274403,0.05,38643.0,38642.0,0.0031]
[1643722274404,0.16164693,38643.0,38642.0,0.0031]
[1643722275305,0.09691093,38643.0,38642.0,0.0031]
[1643722275506,0.0476,38643.0,38642.0,0.0031]
[1643722276954,0.112335,38643.0,38642.0,0.0031]
[1643722277155,0.162335,38643.0,38642.0,0.0031]
[1643722277352,0.262335,38643.0,38642.0,0.0031]
[1643722277553,0.312335,38643.0,38642.0,0.0031]
[1643722278554,0.13183584,38641.0,38637.0,0.001]
[1643722278760,0.1,38640.0,38637.0,0.001]
[1643722278954,0.164737,38640.0,38637.0,0.001]
[1643722279153,0.064737,38640.0,38637.0,0.001]
[1643722279355,0.05,38639.0,38637.0,0.001]
[1643722279556,0.1,38639.0,38636.0,0.3971]
[1643722279760,0.06473843,38638.0,38636.0,0.3971]
[1643722279954,0.1,38639.0,38636.0,0.3971]
[1643722279955,0.0518,38637.0,38636.0,0.3971]
[1643722280160,0.0518,38637.0,38636.0,0.3551]
[1643722284945,0.80490511,38637.0,38636.0,0.3551]
[1643722285139,0.95490511,38637.0,38636.0,0.3551]
[1643722285338,1.55960511,38637.0,38636.0,0.3551]
[1643722285538,1.73438431,38637.0,38636.0,0.3551]
[1643722285941,1.78618431,38637.0,38636.0,0.3551]
[1643722286141,1.78618431,38637.0,38636.0,0.31592499]
[1643722286741,1.78618431,38637.0,38636.0,0.18480732]
[1643722286942,1.78618431,38637.0,38635.0,0.00181733]
[1643722287142,0.1,38636.0,38635.0,0.00181733]
[1643722287343,0.58264791,38636.0,38635.0,0.00181733]
[1643722287745,0.45,38634.0,38624.0,10.0]
[1643722287999,0.11475971,38631.0,38628.0,0.00675129]
[1643722288296,0.991444,38630.0,38628.0,0.00675129]
[1643722288695,0.1,38629.0,38628.0,0.00675129]
[1643722288896,0.92668,38629.0,38624.0,10.0]
[1643722289095,1.1115566,38629.0,38627.0,0.00110551]
[1643722289296,0.9367774,38629.0,38627.0,0.00110551]
[1643722289496,0.01492771,38628.0,38627.0,0.00110551]
[1643722289696,0.06672771,38628.0,38627.0,0.00110551]
[1643722290101,0.06672771,38628.0,38624.0,10.0]
[1643722290298,0.06672771,38628.0,38626.0,0.00110556]
[1643722291098,0.24158158,38628.0,38626.0,0.00110556]
[1643722291297,0.11672771,38628.0,38624.0,10.42]
[1643722291498,0.06475787,38627.0,38625.0,0.00181657]
[1643722291745,0.0518,38626.0,38625.0,0.00181657]
[1643722292145,0.1018,38626.0,38625.0,0.00181657]
[1643722292555,0.3,38625.0,38624.0,10.41890657]
[1643722292750,0.1518,38625.0,38624.0,10.00072318]
[1643722292945,0.8518,38625.0,38624.0,9.27196596]
[1643722293146,0.93412056,38625.0,38624.0,9.27196596]
[1643722293448,0.93412056,38625.0,38624.0,8.27426596]
[1643722293449,3.37584346,38625.0,38624.0,8.27426596]
[1643722293747,3.37584346,38625.0,38624.0,8.25799102]
[1643722293948,3.60898195,38625.0,38624.0,7.31317227]
[1643722294246,4.10898195,38625.0,38624.0,6.58197748]
[1643722294447,4.24102776,38625.0,38624.0,1.4039354]
[1643722294648,4.24102776,38625.0,38624.0,0.3148334]
[1643722294849,3.88983803,38625.0,38624.0,0.22478755]
[1643722295148,3.80574954,38625.0,38624.0,0.22478755]
[1643722295393,2.32830898,38625.0,38624.0,0.22478755]
[1643722295788,0.46,38623.0,38615.0,0.0011826]
[1643722295989,0.0518,38622.0,38615.0,0.0011826]
[1643722296190,1.02476883,38623.0,38615.0,0.0011826]
[1643722296191,0.96,38623.0,38615.0,0.0011826]
[1643722296789,0.80490511,38625.0,38615.0,0.0011826]
[1643722296989,0.80490511,38625.0,38621.0,0.14705317]
[1643722297190,0.80490511,38625.0,38623.0,0.07974639]
[1643722298392,0.80490511,38625.0,38621.0,0.14705317]
[1643722298592,0.80490511,38625.0,38619.0,0.25847589]
[1643722298991,0.5535,38623.0,38619.0,0.25847589]
[1643722299442,0.5535,38623.0,38615.0,0.0011826]
[1643722299641,0.5535,38623.0,38620.0,0.09078053]
[1643722299839,0.5535,38623.0,38621.0,0.14648464]
[1643722300240,0.11492771,38622.0,38621.0,0.14648464]
[1643722303489,0.11492771,38622.0,38621.0,0.23142075]
[1643722303887,0.11492771,38622.0,38621.0,0.14648464]
[1643722304087,0.11492771,38622.0,38615.0,0.0011826]
[1643722304690,0.0150974,38620.0,38615.0,0.0011826]
[1643722305089,0.0150974,38620.0,38619.0,0.13234482]
[1643722305489,0.03002511,38620.0,38619.0,0.13234482]
[1643722305993,0.03002511,38620.0,38616.0,0.09836096]
[1643722306188,0.03002511,38620.0,38615.0,0.29173116]
[1643722306677,0.03002511,38620.0,38615.0,0.0011826]
[1643722307062,0.03002511,38620.0,38615.0,0.0023652]
[1643722307262,0.03002511,38620.0,38616.0,0.00027353]
[1643722307263,0.00143791,38619.0,38616.0,0.00027353]
[1643722308063,0.03002511,38620.0,38616.0,0.00027353]